{"text_format":"1","workbook":"xlsx","n_sheets":2,"sheets":["Resumo Geral_Plano_Comissão","BD Docentes"],"not_rendered":{"charts":0,"images":6,"macros":1,"external_links":0,"defined_names":1,"comments":0,"pivot_tables":0},"unopened":[],"bounds":{"document_bytes":16777216,"sheet_cells":100000,"rows_first":2000,"rows_last":500,"rows_between":2000,"halvings":0,"cell_chars":16384,"cell_head_chars":4096},"cells_cut":0,"cells_raw":0,"read":"whole","date_system":"1900"}

{"sheet":"Resumo Geral_Plano_Comissão","index":0,"n_rows":21,"n_cols":14,"rows_kept":21,"cut":false,"hidden":false,"merged":[[0,0,0,13],[14,0,14,1],[15,0,15,1],[20,0,20,1],[13,0,13,13],[1,0,1,1],[2,0,2,1],[7,0,7,1]]}
["RESUMO GERAL DE PLANOS ANUAIS DE ATIVIDADES DOCENTES"]
["Unidade Acadêmica",null,"-"]
["Ano"]
[]
["SIAPE","Docente/Seção","Seção 1 (Atividades de Ensino na Graduação)¹","Seção 1 (Atividades de Ensino na Pós-Graduação)¹","Seção 1.2 (Demais Atividades de Ensino)","Seção 2 (Produção intelectual)","Seção 3 (Atividades de Pesquisa e Extensão)","Seção 4 (Atividades de Qualificação)","Seção 5 (Atividades Adm. e de Representação)","Seção 6 (Orientação Acadêmica)","Seção 7 (Outras Atividades)","Seção 8 (Cargo de Direção e ou de Chefia)","Seção 9 (Ativ. não contempladas ant.)","Total"]
[null,{"$f":"IF(A6=\"\", \"Insira siape\",(IFERROR(VLOOKUP(A6,'BD Docentes'!A:B,2,),\"\")))","v":"Insira siape"},null,null,null,null,null,null,null,null,null,null,null,{"$f":"SUM(C6:M6)","v":0}]
[]
["Total por seção (Plano)",null,{"$f":"SUM(C6:C7)","v":0},0,0,0,0,0,0,0,0,0,0,0]
[]
[]
[]
[]
[]
["RESUMO GERAL DE RELATÓRIOS ANUAIS DE ATIVIDADES DOCENTES"]
["Unidade Acadêmica",null,{"$f":"C2","v":"-"}]
["Ano"]
[]
["SIAPE","Docente/Seção","Seção 1 (Atividades de Ensino na Graduação)¹","Seção 1 (Atividades de Ensino na Pós-Graduação)¹","Seção 1.2 (Demais Atividades de Ensino)","Seção 2 (Produção intelectual)","Seção 3 (Atividades de Pesquisa e Extensão)","Seção 4 (Atividades de Qualificação)","Seção 5 (Atividades Adm. e de Representação)","Seção 6 (Orientação Acadêmica)","Seção 7 (Outras Atividades)","Seção 8 (Cargo de Direção e ou de Chefia)","Seção 9 (Ativ. não contempladas ant.)","Total"]
[null,{"$f":"IF(A19=\"\", \"Insira siape\",(IFERROR(VLOOKUP(A19,'BD Docentes'!A:B,2,),\"\")))","v":"Insira siape"},null,null,null,null,null,null,null,null,null,null,null,{"$f":"SUM(C19:M19)","v":0}]
[]
["Total por seção (Relatório)",null,{"$f":"SUM(C19:C20)","v":0},0,0,0,0,0,0,0,0,0,{"$f":"SUM(M19:M20)","v":0},{"$f":"SUM(N19:N19)","v":0}]

{"sheet":"BD Docentes","index":1,"n_rows":72,"n_cols":11,"rows_kept":72,"cut":false,"hidden":true,"merged":[]}
["Siape","Nome","UNIDADE","Regime de Trabalho","Data de Nomeação","Email","Fone","Classe","Afastado?"]
[2056139,"ALEX BRUNO F. M. DO NASCIMENTO","UAGESP","T-40 - DE","2013-09-07","alexbruno.fmn@gmail.com","(83) 9 9656-5444","Adjunto","não",null,"-"]
[1187149,"ALLAN GUSTAVO FREIRE DA SILVA","UAGESP","T-40 - DE","2017-02-03","allangfs@hotmail.com","(83) 9 9966-3733","Assistente","não",null,"UAC!S"]
[1451144,"ANTONIO DA SILVA CAMPOS JUNIOR","UAGESP","T-40 - DE","2004-04-16","junior.campos@uol.com.br","(83) 9 9972-1535","Adjunto","não",null,"UAEDUC"]
[4496352,"GILVAN DIAS DE LIMA FILHO","UAGESP","T-40 - DE","2010-02-19","gilvandl@gmail.com","(83) 9 9618-7764","Adjunto","não",null,"UAEB"]
[1325944,"JOSE IRIVALDO ALVES OLIVEIRA SILVA","UAGESP","T-40 - DE","2020-03-11","irivaldo.cdsa@gmail.com","(83) 9 9982-4068","Adjunto","não",null,"UAEP"]
[1838740,"JOSÉ MARIA PEREIRA DA NÓBREGA JUNIOR","UAGESP","T-40 - DE","2011-01-20","nobrega.jr.ufpe@gmail.com","(81) 9 8963-2841","Associado","não",null,"UAGESP"]
[1314111,"KELLY CRISTINA COSTA SOARES","UAGESP","T-40 - DE","2010-09-01","kelsoares2016@uol.com.br","(81) 9 9927-6003","Adjunto","não",null,"UATEC"]
[2489293,"LUIZ ANTÔNIO COELHO DA SILVA","UAGESP","T-40 - DE","2010-04-15","luidd@yahoo.com.br","(83) 9 9822-8800","Adjunto","não"]
[1836148,"JOSÉ MARCIANO MONTEIRO","UACIS","T-40 - DE",null,"jm.monteiro17@gmail.com",null,"Adjunto"]
[1840616,"JUNIA MARUSIA TRIGUEIRO DE LIMA","UACIS","T-40 - DE",null,"juniama@gmail.com",null,"Adjunto"]
[1138045,"KÁTIA RAMOS SILVA","UACIS","T-40 - DE",null,"katya6@gmail.com",null,"Adjunto"]
[3147774,"MARIA HELENA COSTA CARVALHO DE A. LIMA","UACIS","T-40 - DE",null,"lenacarvalho@gmail.com",null,"Adjunto"]
[1569252,"PAULO CÉSAR OLIVEIRA DINIZ","UACIS","T-40 - DE",null,"paulo.cesar@professor.ufcg.edu.br",null,"Associado"]
[1071498,"ROZENVAL DE ALMEIDA E SOUSA","UACIS","T-40 - DE",null,"rozenval.estrela@gmail.com",null,"Adjunto"]
[1435140,"VALDONILSON BARBOSA DOS SANTOS","UACIS","T-40 - DE",null,"valdonilson.santos@uol.com.br",null,"Adjunto"]
[2081790,"WALLACE GOMES FERREIRA DE SOUZA","UACIS","T-40 - DE",null,"wallace.ferreiradesouza@gmail.com",null,"Adjunto"]
[2317841,"ALDRE JORGE MORAIS DE BARROS","UAEB","T-40 - DE",null,"ajmbarros@yahoo.com.br",null,"Adjunto"]
[1323519,"ANA MARY DA SILVA","UAEB","T-40 - DE",null,"aninha123@yahoo.com",null,"Adjunto"]
[1624579,"ANA VERÔNICA SILVA DO NASCIMENTO","UAEB","T-40 - DE",null,"anaveronicasn@gmail.com",null,"Adjunto"]
[2331779,"BRUNO RAFAEL PEREIRA NUNES","UAEB","T-40 - DE",null,"bruno.nunes@ufcg.edu.br",null,"Adjunto"]
[1994682,"FRANKLIN FERREIRA DE FARIAS NOBREGA","UAEB","T-40 - DE",null,"franklinnobrega@yahoo.com.br",null,"Adjunto"]
[2621135,"GEORGE DO NASCIMENTO RIBEIRO","UAEB","T-40 - DE",null,"georgenribeiro@gmail.com",null,"Adjunto"]
[1786136,"GLAUCIANE DANUSA COELHO","UAEB","T-40 - DE",null,"glauciane.coelho.pb@gmail.com",null,"Adjunto"]
[1867672,"JANDUY GUERRA ARAÚJO","UAEB","T-40 - DE",null,"janduy.guerra@gmail.com",null,"Adjunto"]
[1785537,"JEAN CÉSAR FARIAS DE QUEIROZ","UAEB","T-40 - DE",null,"queiroz.jcf@gmail.com",null,"Adjunto"]
[2301176,"LENILDE MERGIA RIBEIRO LIMA","UAEB","T-40 - DE",null,"mergia@gmail.com",null,"Adjunto"]
[1994719,"MICHELLE ROSSANA FERREIRA VAZ","UAEB","T-40 - DE",null,"mrossanavaz@gmail.com",null,"Adjunto"]
[337191,"RIVALDO VITAL DOS SANTOS","UAEB","T-40 - DE",null,"rvital@cstr.ufcg.edu.br",null,"Titular"]
[1810217,"ALMIR ANACLETO DE ARAÚJO GOMES","UAEDUC","T-40 - DE",null,"almir.anacleto@professor.ufcg.edu.br",null,"Assistente"]
[1785202,"BRUNO MEDEIROS ROLDAO DE ARAUJO","UAEDUC","T-40 - DE",null,"bruno.mr.araujo@ufcg.edu.br",null,"Adjunto"]
[2324134,"CAROLINA FIGUEIREDO DE SÁ","UAEDUC","T-40 - DE",null,"carolina.fsa2013@gmail.com",null,"Assistente"]
[2328344,"DENISE MARIA DUARTE COUTINHO","UAEDUC","T-40 - DE",null,"jeanisetessier@gmail.com",null,"Assistente"]
[1983241,"DENISE XAVIER TORRES","UAEDUC","T-40 - DE",null,"dniseduca77@gmail.com",null,"Assistente"]
[2115195,"ERIVAN SILVA","UAEDUC","T-40 - DE",null,"erivansilva.pb@gmail.com",null,"Assistente"]
[1770329,"FABIANO CUSTODIO","UAEDUC","T-40 - DE",null,"fabianocustodio@ufcg.edu.br",null,"Adjunto"]
[3524120,"FAUSTINO TEATINO CAVALCANTE NETO","UAEDUC","T-40 - DE",null,"faustinoteatinoneto@gmail.com",null,"Adjunto"]
[2323773,"FILIPE GERVÁSIO PINTO DA SILVA","UAEDUC","T-40 - DE",null,"filipe.gervasio@ufcg.edu.br",null,"Assistente"]
[1812485,"ISAAC ALEXANDRE DA SILVA","UAEDUC","T-40 - DE",null,"isaac2015isaac@yahoo.com.br",null,"Adjunto"]
[1354780,"JOSE IRELANIO LEITE DE ATAIDE","UAEDUC","T-40 - DE",null,"joseirelanio@ufcg.edu.br",null,"Adjunto"]
[2461887,"MARCELLE VENTURA CARVALHO","UAEDUC","T-40 - DE",null,"marcellevc@ufcg.edu.br",null,"Assistente"]
[1582010,"MARCUS BESSA","UAEDUC","T-40 - DE",null,"marcusbessa@ufcg.edu.br",null,"Adjunto"]
[1126203,"MARIA DO SOCORRO SILVA IV","UAEDUC","T-40 - DE",null,"socorrosilva@ufcg.edu.br",null,"Adjunto"]
[1741502,"MONICA MARTINS NEGREIROS","UAEDUC","T-40 - DE",null,"monicanegreiros@ufcg.edu.br",null,"Adjunto"]
[338350,"NADEGE DA SILVA DANTAS","UAEDUC","T-40 - DE",null,"nadege.dantas@gmail.com",null,"Adjunto"]
[1728508,"NAHUM ISAQUE DOS SANTOS CAVALCANTE","UAEDUC","T-40 - DE",null,"nahum.isaque@ufcg.edu.br",null,"Assistente"]
[1778738,"RAFAEL TRINDADE MAIA","UAEDUC","T-40 - DE",null,"rafael.rafatrin@gmail.com",null,"Adjunto"]
[3331082,"SONIA MARIA LIRA FERREIRA","UAEDUC","T-40 - DE",null,"sonia.lira@ufcg.edu.br",null,"Assistente"]
[1767990,"VALERIA ANDRADE","UAEDUC","T-40 - DE",null,"val.andradepb@gmail.com",null,"Adjunto"]
[1810467,"VÍNICIUS RAMOS BEZERRA","UAEDUC","T-40 - DE",null,"vinicius.ramos@professor.ufcg.edu.br",null,"Assistente"]
[1783998,"WALBERTO BARBOSA DA SILVA","UAEDUC","T-40 - DE",null,"walberto@ufcg.edu.br",null,"Assistente"]
[1785378,"ADRIANA DE FÁTIMA MEIRA VITAL","UATEC","T-40 - DE",null,"vital.adriana@hotmail.com",null,"Adjunto"]
[1805235,"ALDINETE BARRETO BEZERRA ANASTÁCIO","UATEC","T-40 - DE",null,"aldibarreto@hotmail.com",null,"Adjunto"]
[1771989,"ALECKSANDRA VIEIRA DE LACERDA","UATEC","T-40 - DE",null,"alecksandra.vieira@professor.ufcg.edu.br",null,"Adjunto"]
[1768805,"ANA CRISTINA CHACON LISBOA","UATEC","T-40 - DE",null,"aclisboa@ufcg.edu.br",null,"Assistente"]
[1543981,"CACIANA CAVALCANTI COSTA","UATEC","T-40 - DE",null,"ccavalcantic@gmail.com",null,"Associada"]
[1771906,"CARINA SEIXAS MAIA DORNELAS","UATEC","T-40 - DE",null,"carinadornelas@ufcg.edu.br",null,"Adjunto"]
[1835917,"EDVALDO ELOY DANTAS JÚNIOR","UATEC","T-40 - DE",null,"edvaldoeloyjr@gmail.com",null,"Adjunto"]
[1786030,"FABIANA PIMENTEL MACEDO FARIAS","UATEC","T-40 - DE",null,"fabianapmf@msn.com",null,"Adjunto"]
[2115731,"HUGO MORAIS DE ALCANTARA","UATEC","T-40 - DE",null,"hugo.ma@ufcg.edu.br",null,"Adjunto"]
[2552724,"ILZA MARIA DO NASCIMENTO","UATEC","T-40 - DE",null,"ilzabras@ufcg.edu.br",null,"Adjunto"]
[1812730,"JOELMA SALES DOS SANTOS","UATEC","T-40 - DE",null,"joelma_salles@yahoo.com.br",null,"Adjunto"]
[2420112,"JOSÉ GEORGE FERREIRA MEDEIROS","UATEC","T-40 - DE",null,"georgemedeiros_jp@hotmail.com",null,"Adjunto"]
[1456798,"MARCIANO MARINHO","UATEC","T-40 - DE",null,"marcianomarinho@hotmail.com",null,"Assistente"]
[2555880,"MARIA LEIDE SILVA DE ALENCAR","UATEC","T-40 - DE",null,"leide@ufcg.edu.br",null,"Adjunto"]
[2050244,"MORGANA FABÍOLA CUNHA SILVA CANUTO","UATEC","T-40 - DE",null,"morgana.canuto@ufcg.edu.br",null,"Adjunto"]
[1253152,"PAULO DA COSTA MEDEIROS","UATEC","T-40 - DE",null,"medeirospc@gmail.com",null,"Adjunto"]
[1850725,"RANOEL JOSÉ DE SOUSA GONÇALVES","UATEC","T-40 - DE",null,"ranoelgoncalves@hotmail.com",null,"Adjunto"]
[1744336,"RENATO ISIDRO","UATEC","T-40 - DE",null,"renatoisidro@ufcg.edu.br",null,"Adjunto"]
[1803521,"ROBSON FERNANDES BARBOSA","UATEC","T-40 - DE",null,"robson_rfb@yahoo.com.br",null,"Assistente"]
[1813333,"RÔMULO AUGUSTO VENTURA SILVA","UATEC","T-40 - DE",null,"romuloaugusto@ufcg.edu.br",null,"Adjunto"]
[1640581,"TIAGO GONÇALVES PEREIRA ARAÚJO","UATEC","T-40 - DE",null,"tiagoaraujo@yahoo.com",null,"Adjunto"]